bitfinex/quotes_ETHUSD_20240621
["timestamp","ask_amount","ask_price","bid_price","bid_amount"]
[1718992615960,5.2659,3488.2,3486.9,2.29428]
[1718992616143,0.82659,3488.1,3486.9,2.29428]
[1718992616347,3.82659,3488.1,3486.9,2.29428]
[1718992616947,3.82659,3488.1,3487.0,0.05734897]
[1718992617184,3.82659,3488.1,3487.1,2.29416]
[1718992617396,3.0,3488.1,3487.2,0.05721287]
[1718992617682,2.2659,3488.2,3486.9,2.29429]
[1718992618385,2.2659,3488.2,3486.7,2.29438]
[1718992618593,2.369,3488.0,3486.4,4.58924]
[1718992618791,2.6609,3487.9,3486.5,2.29455]
[1718992619133,2.452,3487.7,3486.5,2.29455]
[1718992619595,2.452,3487.7,3486.4,3.928414]
[1718992621002,2.452,3487.7,3486.4,1.633804]
[1718992621299,2.452,3487.7,3486.3,2.29467]
[1718992621600,2.452,3487.7,3486.1,4.30877]
[1718992621784,2.452,3487.7,3485.8,14.16752]
[1718992622097,2.452,3487.7,3485.8,14.16751]
[1718992622268,3.0,3487.8,3485.8,14.16751]
[1718992622269,2.4756,3487.5,3485.9,0.04176225]
[1718992622471,3.0,3487.5,3485.9,0.04176225]
[1718992622672,2.4756,3487.5,3485.9,0.04176225]
[1718992622986,2.4878,3487.4,3485.9,0.04176225]
[1718992623187,3.0,3487.4,3485.9,0.04176225]
[1718992623387,2.4164,3487.2,3485.9,1.87977838]
[1718992623595,5.4164,3487.2,3485.9,1.87977838]
[1718992624710,5.4164,3487.2,3485.9,4.17472838]
[1718992627107,5.4164,3487.2,3485.9,2.33671225]
[1718992628234,5.4164,3487.2,3485.9,0.04176225]
[1718992629520,5.4164,3487.2,3486.3,0.841]
[1718992629886,5.4164,3487.2,3486.4,0.04193607]
[1718992630414,0.841,3487.0,3486.4,0.04193607]
[1718992630731,0.62574,3486.9,3486.0,0.841]
[1718992630899,0.62574,3486.9,3486.5,0.04191911]
[1718992631079,0.62574,3486.9,3486.2,0.841]
[1718992631433,0.62574,3486.9,3486.6,0.04190215]
[1718992631782,0.62574,3486.9,3486.2,0.841]
[1718992632177,2.789674,3486.8,3486.3,0.04195304]
[1718992632391,0.841,3486.5,3485.5,0.841]
[1718992632810,3.841,3486.5,3485.6,0.04241672]
[1718992632995,3.24413,3486.4,3485.6,0.04241672]
[1718992633190,3.0,3486.3,3485.5,0.841]
[1718992633389,3.0,3486.3,3485.7,0.04239975]
[1718992633691,5.3273,3486.4,3485.8,0.04238278]
[1718992634023,3.0,3486.3,3485.2,2.3289]
[1718992634229,2.3273,3486.4,3485.9,0.04236581]
[1718992634383,2.3273,3486.4,3485.3,0.462442]
[1718992634583,2.3273,3486.4,3485.0,2.29552]
[1718992634813,2.3273,3486.4,3485.4,0.04245066]
[1718992635092,2.3273,3486.4,3485.5,0.04243369]
[1718992635442,2.3273,3486.4,3484.9,9.8966]
[1718992635601,0.23273,3486.3,3485.6,0.04241672]
[1718992635796,3.23273,3486.3,3484.9,9.8966]
[1718992636005,3.23273,3486.3,3485.7,0.04239975]
[1718992636203,3.23273,3486.3,3484.9,12.19221]
[1718992636526,3.23273,3486.3,3485.0,0.04251857]
[1718992636719,0.556003,3486.2,3485.0,1.69746543]
[1718992637793,0.556003,3486.2,3485.0,0.04251857]
[1718992638198,2.412,3486.1,3485.0,0.04251857]
[1718992638395,2.412,3486.0,3485.0,0.04251857]
[1718992638799,2.412,3486.0,3484.6,2.29581]
[1718992639226,2.412,3486.0,3484.7,2.29574]
[1718992639430,2.412,3486.0,3484.6,2.29581]
[1718992639431,0.5968003,3485.9,3484.6,2.29581]
[1718992639752,3.5968003,3485.9,3484.6,2.29581]
[1718992640049,3.5968003,3485.9,3484.7,2.29573]
[1718992642213,3.5968003,3485.9,3484.7,4.59146]
[1718992642456,3.5968003,3485.9,3484.8,0.696026]
[1718992644513,2.4542,3485.8,3484.8,0.696026]
[1718992644712,5.4542,3485.8,3484.8,0.696026]
[1718992645041,3.0,3485.7,3484.8,0.696026]
[1718992645349,2.4542,3485.8,3484.8,0.696026]
[1718992645873,2.69962,3485.8,3484.8,0.696026]
[1718992646013,2.4499,3485.6,3484.3,11.75497]
[1718992646217,2.4499,3485.6,3484.4,2.29594]
[1718992646463,2.4499,3485.6,3484.6,2.2958]
[1718992647107,2.4499,3485.6,3484.3,9.73597]
[1718992647309,2.389,3485.4,3484.3,8.88726]
[1718992647526,5.389,3485.4,3484.3,8.88726]
[1718992647760,2.389,3485.4,3484.3,11.18326]
[1718992648263,2.389,3485.4,3484.3,1.44726]
[1718992648432,2.4894,3485.2,3484.1,2.29614]
[1718992648618,2.4894,3485.2,3484.0,2.29621]
[1718992648619,5.4894,3485.2,3484.0,2.29621]
[1718992648814,2.4894,3485.2,3484.0,2.29621]
[1718992649878,2.4894,3485.2,3483.8,4.76968]
[1718992650097,2.4894,3485.2,3483.8,2.29628]
[1718992650273,2.50404,3485.1,3483.7,7.44]
[1718992650458,3.0,3485.0,3483.7,9.73635]
[1718992650642,3.0,3485.0,3483.6,2.29643]
[1718992650643,2.4486,3484.9,3483.6,2.29646]
[1718992650841,2.4486,3484.9,3483.7,0.692589]
[1718992652068,2.4486,3484.9,3483.4,2.29657]
[1718992652341,2.4486,3484.9,3483.3,2.29666]
[1718992653063,2.4486,3484.9,3483.2,2.29667]
[1718992653266,2.3056,3484.6,3483.1,7.44]
[1718992653476,2.3056,3484.5,3483.1,7.44]
[1718992653985,2.4283,3484.4,3483.1,7.44]
[1718992654296,2.019,3484.3,3482.5,2.29718]
[1718992654464,2.87303,3484.2,3482.6,0.473488]
[1718992654668,2.87303,3484.2,3482.6,2.770618]
[1718992654979,3.0,3484.1,3482.6,2.770618]
[1718992655149,2.4043,3484.0,3482.6,2.770618]
[1718992656054,2.4043,3484.0,3482.8,2.29693]
[1718992656260,2.4043,3484.0,3482.9,0.95879019]
[1718992656562,2.4043,3484.0,3483.0,2.29687]
[1718992656754,2.4043,3484.0,3482.9,0.9383598]
[1718992657084,2.4043,3484.0,3483.0,0.02574021]
[1718992657315,2.4043,3484.0,3483.1,2.2968]
[1718992657492,2.4043,3484.0,3483.1,2.852583]
[1718992657654,2.4043,3484.0,3483.1,0.555783]
[1718992658017,2.4043,3484.0,3483.0,2.2968]
[1718992658484,2.4043,3484.0,3483.1,2.29678]
[1718992658909,2.4043,3484.0,3483.2,2.29669]
[1718992659485,2.4043,3484.0,3483.0,2.29686]
[1718992660587,2.4043,3484.0,3483.1,0.04213033]
[1718992660896,2.64473,3484.0,3483.1,0.0262816]
[1718992661055,3.0,3483.9,3483.1,0.0262816]
[1718992661784,3.0,3483.9,3483.1,2.3230816]
[1718992662389,2.4043,3484.0,3483.2,2.29673]
[1718992662598,2.4043,3484.0,3483.2,2.3391882]
[1718992662765,2.4043,3484.0,3483.2,0.0424582]
[1718992663099,2.4043,3484.0,3483.0,2.29685]
[1718992663392,2.4043,3484.0,3483.3,0.04244121]
[1718992663574,2.4043,3484.0,3483.0,3.187836]
[1718992663789,2.4043,3484.0,3483.4,0.04242421]
[1718992663991,2.4043,3484.0,3483.2,2.29672]
[1718992664323,2.4043,3484.0,3483.5,0.04240722]
[1718992664459,2.4043,3484.0,3483.4,2.29659]
[1718992664660,2.4043,3484.0,3483.6,0.04239023]
[1718992664860,2.4043,3484.0,3483.5,0.04240722]
[1718992665057,2.4043,3484.0,3483.7,0.04237324]
[1718992665308,2.2959,3484.8,3483.7,0.04237324]
[1718992665635,2.2959,3484.8,3484.1,2.29608]
[1718992665775,2.2959,3484.8,3484.3,2.29601]
[1718992666523,2.4171,3485.1,3484.5,2.29587]
[1718992666827,2.4171,3485.1,3484.6,0.04215556]
[1718992667125,2.4171,3485.1,3484.3,2.29595]
[1718992667414,2.4171,3485.1,3484.7,2.29574]
[1718992667628,2.4694,3485.8,3484.7,2.29574]
[1718992667928,0.2768917,3485.7,3484.8,0.053726]
[1718992668159,0.57516066,3485.7,3484.8,0.053726]
[1718992668416,0.2768917,3485.7,3484.8,0.053726]
[1718992669434,0.2768917,3485.7,3484.8,2.349376]
[1718992669608,0.2768917,3485.7,3484.9,2.29561]
[1718992669777,3.0,3485.7,3484.9,2.34925417]
[1718992669993,2.4694,3485.8,3484.9,2.34925417]
[1718992670192,2.4694,3485.8,3485.1,2.29548]
[1718992670710,2.4694,3485.8,3485.1,2.34243294]
[1718992671114,2.4694,3485.8,3485.1,2.29548]
[1718992671719,2.4694,3485.8,3485.1,2.29542]
[1718992676091,2.4694,3485.8,3485.2,2.29541]
[1718992676417,2.307,3486.4,3485.4,2.29527]
[1718992676588,2.307,3486.4,3485.2,2.2954]
[1718992676785,2.307,3486.4,3485.3,0.43144]
[1718992677122,2.307,3486.4,3485.6,2.29512]
[1718992677293,2.307,3486.4,3485.5,2.29522]
[1718992680488,2.307,3486.4,3485.3,0.43144]
[1718992680725,2.307,3486.4,3484.9,7.44]
[1718992680726,2.307,3486.4,3485.0,2.29554]
[1718992680940,2.4814,3486.2,3485.0,1.411724]
[1718992681140,5.4814,3486.2,3485.0,1.411724]
[1718992681451,5.4814,3486.2,3485.0,3.707234]
[1718992682202,2.2525,3486.1,3484.4,7.44]
[1718992682397,2.2525,3486.0,3484.2,6.57997]
[1718992682899,2.4518,3485.9,3484.2,4.56097]
[1718992683110,2.4518,3485.9,3483.9,2.29624]
[1718992683111,3.05198,3485.8,3483.9,4.31527]
[1718992683329,2.4518,3485.6,3484.0,2.29614]
[1718992683523,5.4518,3485.6,3484.0,2.29614]
[1718992683736,0.605198,3485.5,3484.0,1.654104]
[1718992684045,3.605198,3485.5,3484.0,1.654104]
[1718992684341,3.605198,3485.5,3484.0,3.950314]
[1718992684703,3.605198,3485.5,3484.0,1.654104]
[1718992684905,0.6056998,3485.4,3484.1,1.3409384]
[1718992685741,2.4213,3485.3,3483.8,7.44]
[1718992685899,5.4213,3485.3,3483.8,7.44]
[1718992686103,2.4213,3485.3,3483.8,7.44]
[1718992688109,2.4213,3485.3,3483.8,9.7363]
[1718992688450,2.4213,3485.3,3483.9,2.29624]
[1718992688621,0.24213,3485.2,3484.0,0.973624]
[1718992688939,0.24213,3485.2,3483.8,7.44]
[1718992688940,3.24213,3485.2,3483.8,7.44]
[1718992689137,3.24213,3485.2,3484.0,2.019]
[1718992690248,3.0,3485.2,3484.1,2.29613]
[1718992690535,2.4213,3485.3,3484.1,2.29613]
[1718992690740,2.4213,3485.3,3484.2,0.05739576]
[1718992690930,2.4213,3485.3,3484.2,2.35345576]
[1718992691325,2.4213,3485.3,3484.4,2.019]
[1718992691523,2.4213,3485.3,3484.5,0.43724051]
[1718992691941,2.4213,3485.3,3484.5,2.29587]
[1718992692139,2.4213,3485.3,3484.6,2.2958]
[1718992692521,2.4213,3485.3,3484.5,2.29587]
[1718992693420,2.4213,3485.3,3484.4,4.31493]
[1718992693624,2.4213,3485.3,3484.5,0.661093]
[1718992693806,2.4213,3485.3,3482.5,2.32464428]
[1718992693807,2.4213,3485.3,3483.9,2.29621]
[1718992694142,2.4213,3485.3,3484.0,4.31518]
[1718992694143,2.71960563,3485.3,3484.0,4.31518]
[1718992694325,3.0,3485.2,3484.0,4.31518]
[1718992694709,3.0,3485.2,3484.1,2.29613]
[1718992695207,3.0,3485.2,3484.2,2.29606]
[1718992695412,3.0,3485.2,3484.5,2.29587]
[1718992695613,2.4213,3485.3,3484.6,2.29581]
[1718992695844,2.4213,3485.3,3484.7,0.05738783]
[1718992696414,2.2596,3486.2,3484.7,0.05738783]
[1718992696731,0.72777863,3486.1,3484.9,2.2956]
[1718992697045,4.02596855,3486.1,3484.9,2.2956]
[1718992697407,4.02596855,3486.1,3484.8,4.31467]
[1718992698357,4.02596855,3486.1,3484.8,2.019]
[1718992698524,0.62855686,3486.0,3484.9,0.49815538]
[1718992699350,0.62855686,3486.0,3484.6,4.31481]
[1718992700042,0.62855686,3486.0,3484.7,2.29574]
[1718992700439,0.62855686,3486.0,3484.6,2.019]
[1718992700440,2.3044,3485.9,3484.6,2.019]
[1718992700627,5.3044,3485.9,3484.6,2.019]
[1718992700945,5.3044,3485.9,3484.7,2.29568]
[1718992701149,5.3044,3485.9,3484.9,2.29557]
[1718992701537,5.3044,3485.9,3484.8,2.727138]
[1718992702043,5.3044,3485.9,3484.8,5.022808]
[1718992702248,5.3044,3485.9,3484.9,2.29559]
[1718992702615,5.3044,3485.9,3484.8,0.431468]
[1718992702832,0.62311468,3485.8,3484.8,0.431468]
[1718992703014,3.62311468,3485.8,3484.8,0.431468]
[1718992707857,3.0,3485.8,3485.0,2.019]
[1718992708157,2.3044,3485.9,3485.0,2.019]
[1718992708459,2.3431,3486.9,3485.4,4.31426]
[1718992708624,0.96331,3486.8,3485.4,4.31426]
[1718992708824,0.298187,3486.8,3485.4,4.31426]
[1718992709052,3.298187,3486.8,3485.4,4.31426]
[1718992709256,3.298187,3486.8,3485.5,2.29522]
[1718992710161,3.298187,3486.8,3485.4,4.31428]
[1718992710467,0.5641287,3486.7,3485.5,2.956179]
[1718992711431,0.5641287,3486.7,3485.5,0.660969]
[1718992711629,0.5641287,3486.7,3485.5,2.956189]
[1718992712230,0.5641287,3486.7,3485.5,0.660969]
[1718992712430,2.92754157,3486.6,3485.4,2.019]
[1718992712659,3.0,3486.5,3485.4,2.019]
[1718992712861,3.0,3486.5,3485.4,4.31428]
[1718992714219,3.0,3486.5,3485.4,2.019]
[1718992714427,3.0,3486.5,3485.7,2.29508]
[1718992714621,3.0,3486.5,3485.4,4.31428]
[1718992714870,3.0,3486.5,3485.8,2.019]
[1718992715040,2.307,3486.6,3485.8,2.019]
[1718992715927,2.307,3486.6,3485.8,4.31401]
[1718992716529,2.307,3486.6,3485.8,4.31402]
[1718992717529,2.307,3486.6,3485.9,2.29494]
[1718992717730,2.307,3486.6,3485.9,2.955836]
[1718992718042,2.307,3486.6,3485.9,0.660896]
[1718992718251,2.307,3486.6,3485.9,2.955846]
[1718992719256,2.307,3486.6,3485.9,0.660896]
[1718992721173,2.307,3486.6,3485.9,2.955836]
[1718992721687,2.307,3486.6,3486.0,2.29487]
[1718992721886,2.307,3486.6,3486.0,0.7269786]
[1718992722349,2.307,3486.6,3486.0,3.0218386]
[1718992722782,2.307,3486.6,3486.0,0.7269786]
[1718992727673,2.307,3486.6,3486.0,3.0218586]
[1718992728374,2.307,3486.6,3486.0,0.7269786]
[1718992729591,2.4138,3487.2,3486.1,0.50409186]
[1718992729792,2.4138,3487.2,3486.0,2.29489]
[1718992730362,2.4138,3487.2,3486.1,2.29482]
[1718992731271,2.4138,3487.2,3486.0,2.29488]
[1718992731469,2.4138,3487.2,3486.1,2.2948]
[1718992731470,0.24138,3487.1,3486.1,2.2948]
[1718992731780,3.24138,3487.1,3486.2,2.29474]
[1718992732389,3.24138,3487.1,3486.1,2.29481]
[1718992733565,3.24138,3487.1,3486.2,4.31375]
[1718992733868,3.24138,3487.1,3486.2,2.019]
[1718992738268,2.4701,3487.0,3485.5,2.956158]
[1718992738465,2.4701,3487.0,3484.7,2.29573]
[1718992738466,2.4701,3486.9,3484.7,2.29573]
[1718992738704,2.4701,3486.8,3484.8,2.019]
[1718992738877,2.4701,3486.7,3484.8,2.019]
[1718992739082,2.4701,3486.5,3484.8,4.31465]
[1718992739619,3.3111,3486.4,3485.4,0.841]
[1718992739797,2.4701,3486.2,3485.4,0.841]
[1718992741512,2.4701,3486.2,3484.8,4.31467]
[1718992742221,2.4701,3486.2,3484.8,2.019]
[1718992742392,2.363,3486.0,3484.8,2.019]
[1718992742594,2.4374,3485.9,3484.8,2.019]
[1718992746938,2.4374,3485.9,3484.8,4.31467]
[1718992747221,2.4374,3485.9,3485.1,2.29542]
[1718992747816,2.4374,3485.9,3485.2,2.2954]
[1718992747997,2.4374,3485.9,3485.3,0.459094]
[1718992748789,2.4374,3485.9,3485.3,2.77336299]
[1718992749547,2.4374,3485.9,3485.3,0.459094]
[1718992749727,2.4374,3485.9,3485.2,2.019]
[1718992750034,2.4374,3485.9,3485.0,2.29554]
[1718992750198,2.4374,3485.9,3484.8,4.31461]
[1718992750523,2.4374,3485.9,3484.8,2.019]
[1718992751789,2.4374,3485.9,3484.9,2.29559]
[1718992752033,2.4374,3485.9,3485.1,2.29548]
[1718992752321,2.4374,3485.9,3485.0,0.661026]
[1718992752624,2.4374,3485.9,3485.0,2.956556]
[1718992752826,2.4374,3485.9,3485.0,2.956506]
[1718992752982,2.4374,3485.9,3485.1,0.05458516]
[1718992753185,2.4374,3485.9,3485.2,0.30110912]
[1718992756235,2.4374,3485.9,3485.2,2.59651912]
[1718992757145,2.4374,3485.9,3485.2,0.30110912]
[1718992758559,2.4374,3485.9,3485.3,2.29534]
[1718992758745,2.4374,3485.9,3485.4,0.05737544]
[1718992758951,2.4743,3486.6,3485.6,2.019]
[1718992759264,2.4743,3486.6,3485.7,2.29508]
[1718992760794,2.4743,3486.6,3485.8,2.29501]
[1718992760926,2.4743,3486.6,3485.8,2.955926]
[1718992761863,2.4743,3486.6,3485.8,0.660916]
[1718992762164,2.4743,3486.6,3485.6,4.31414]
[1718992762763,2.4743,3486.6,3485.7,2.29508]
[1718992762986,2.4743,3486.6,3484.2,14.42601]
[1718992762987,2.4743,3486.6,3485.0,2.29554]
[1718992763287,2.4743,3486.6,3485.1,2.29545]
[1718992763498,1.725,3487.1,3485.1,2.29545]
[1718992763499,2.2531,3486.4,3485.1,2.29545]
[1718992763703,2.2531,3486.3,3484.8,2.29567]
[1718992763856,2.2531,3486.3,3485.0,2.29554]
[1718992764041,2.2531,3486.2,3485.0,2.29554]
[1718992764246,2.2531,3486.2,3484.7,2.019]
[1718992764587,0.2983214,3486.5,3484.8,3.712468]
[1718992764588,2.82171,3486.1,3484.8,3.712468]
[1718992764887,2.2964,3485.9,3484.8,3.712468]
[1718992765240,2.2964,3485.9,3484.8,1.416798]
[1718992765499,2.2964,3485.9,3484.1,2.29608]
[1718992765648,2.4733,3485.7,3484.0,2.29614]
[1718992766155,2.3769,3485.6,3483.8,4.31532]
[1718992766351,2.86192,3485.5,3483.9,2.29627]
[1718992766889,2.3769,3485.3,3483.9,2.29627]
[1718992767653,2.3769,3485.3,3483.8,2.680179]
[1718992768073,2.3769,3485.3,3483.8,2.019]
[1718992768277,2.4083,3485.1,3483.5,2.29653]
[1718992768462,2.2963,3485.0,3483.5,2.29653]
[1718992769094,2.2963,3485.0,3483.6,2.29643]
[1718992770966,2.2963,3485.0,3483.9,2.29621]
[1718992771167,2.2963,3485.0,3484.0,0.229621]
[1718992772494,2.2963,3485.0,3483.8,4.31531]
[1718992772798,2.2963,3485.0,3483.8,2.019]
[1718992773456,2.2963,3485.0,3483.8,4.31532]
[1718992775103,2.2963,3485.0,3483.8,2.019]
[1718992779361,2.2963,3485.0,3484.1,2.29612]
[1718992779563,2.2963,3485.0,3484.2,2.248612]
[1718992779870,2.2963,3485.0,3484.2,0.229612]
[1718992781300,2.2963,3485.0,3483.9,2.29627]
[1718992781463,2.2963,3485.0,3484.0,2.2962]
[1718992781668,2.2963,3485.0,3484.1,2.2961]
[1718992782134,2.2963,3485.0,3483.9,2.29627]
[1718992782967,2.2963,3485.0,3484.0,2.29617]
[1718992783268,2.2963,3485.0,3484.1,0.431517]
[1718992787011,0.55,3484.9,3483.0,7.44]
[1718992787322,2.2677,3484.8,3483.0,2.29686]
[1718992787481,2.2677,3484.8,3482.9,4.31593]
[1718992787685,2.2677,3484.6,3483.0,0.899389]
[1718992787892,2.2677,3484.6,3482.8,2.29699]
[1718992788068,2.3756,3484.5,3482.8,2.29699]
[1718992788412,2.3756,3484.4,3482.8,2.29699]
[1718992788572,2.3756,3484.3,3482.8,2.29699]
[1718992788916,2.4353,3484.1,3482.9,3.187938]
[1718992791173,2.4353,3484.1,3482.9,0.891018]
[1718992791395,2.4353,3484.1,3482.6,4.31613]
[1718992791909,2.4353,3484.1,3482.6,4.31607]
[1718992792410,2.4353,3484.1,3482.9,2.29693]
[1718992792611,2.4353,3484.1,3482.6,4.31609]
[1718992792909,2.4179,3483.9,3482.7,3.188104]
[1718992793087,5.4179,3483.9,3482.7,2.29705]
[1718992793267,2.4179,3483.9,3482.6,4.31608]
[1718992793482,2.4179,3483.9,3482.8,2.29697]
[1718992793833,2.4179,3483.9,3482.9,0.431597]
[1718992796284,2.4179,3483.9,3482.6,2.29713]
[1718992796786,2.4179,3483.9,3482.7,2.29704]
[1718992798447,2.4179,3483.9,3482.4,4.3162]
[1718992798723,2.4179,3483.9,3482.5,0.05396467]
[1718992799538,4.725,3484.3,3482.5,0.05396467]
[1718992799690,1.5268,3484.2,3482.5,0.05396467]
[1718992799886,1.82524449,3484.2,3482.5,0.05396467]
[1718992800534,3.55024449,3484.2,3482.5,0.05396467]
[1718992800840,3.0,3484.1,3482.5,0.05396467]
[1718992801032,0.55,3484.0,3482.5,0.05396467]
[1718992801209,0.65502445,3483.9,3482.5,0.05396467]
[1718992802632,2.4256,3483.8,3482.5,0.05396467]
[1718992802793,2.4717,3483.7,3482.5,0.05396467]
[1718992802996,2.4717,3483.6,3482.5,0.05396467]
[1718992803509,2.4717,3483.6,3482.5,2.35115467]
[1718992803740,2.4717,3483.6,3482.6,0.23511547]
[1718992804095,2.4717,3483.6,3482.6,2.53223547]
[1718992804591,2.4717,3483.6,3482.9,2.29687]
[1718992804804,2.2654,3484.1,3483.0,2.019]
[1718992805018,2.2654,3484.1,3483.1,0.431592]
[1718992805220,2.2654,3484.1,3482.6,0.23511547]
[1718992805443,2.2654,3484.1,3482.8,0.843]
[1718992805649,2.3494,3483.7,3482.8,0.843]
[1718992805905,2.3494,3483.7,3482.6,0.23511547]
[1718992805906,2.66864,3483.7,3482.9,0.843]
[1718992806145,2.3494,3483.7,3482.9,0.843]
[1718992806328,2.2939,3483.6,3482.9,0.843]
[1718992806533,5.2939,3483.6,3482.9,0.843]
[1718992806910,3.0,3483.5,3482.9,0.843]
[1718992807139,2.2939,3483.6,3482.9,0.843]
[1718992807351,2.2939,3483.6,3482.9,1.18052455]
[1718992807703,2.2939,3483.6,3482.9,0.843]
[1718992808129,2.2939,3483.6,3483.3,0.843]
[1718992808452,2.356,3483.9,3483.0,2.29683]
[1718992808620,2.356,3483.9,3482.7,2.3745]
[1718992808621,2.356,3483.9,3483.5,0.843]
[1718992809020,2.356,3483.9,3483.2,2.29673]
[1718992809021,2.356,3484.4,3483.8,0.843]
[1718992809223,2.356,3484.4,3484.1,0.843]
[1718992809430,2.356,3484.4,3483.6,2.29645]
[1718992809639,2.45,3485.2,3483.9,2.29621]
[1718992810205,2.45,3485.2,3483.7,2.526045]
[1718992810409,2.45,3485.2,3483.7,2.2964]
[1718992810944,2.74828049,3485.2,3483.7,2.2964]
[1718992811151,2.74828049,3485.2,3483.4,2.2966]
[1718992811313,2.4178,3485.0,3483.4,2.2966]
[1718992811648,3.55,3485.1,3483.5,0.97366]
[1718992811649,0.87160805,3484.9,3483.5,0.97366]
[1718992811810,5.275,3485.1,3483.3,2.29666]
[1718992811811,2.9678,3484.8,3483.3,2.29666]
[1718992812149,3.0,3484.7,3483.3,2.29666]
[1718992812445,2.4178,3484.8,3483.3,2.29666]
[1718992812649,2.4178,3484.8,3483.2,7.44]
[1718992812820,2.4178,3484.8,3483.0,4.31783]
[1718992812821,2.4178,3484.8,3483.4,2.2966]
[1718992813017,2.4178,3484.8,3483.5,2.29654]
[1718992813525,2.4178,3484.8,3483.9,2.29626]
[1718992813707,2.4178,3484.8,3483.8,2.29633]
[1718992814161,2.4178,3484.8,3483.5,2.29654]
[1718992814320,0.24178,3484.7,3483.6,0.66142]
[1718992814531,3.24178,3484.7,3483.6,2.95788]
[1718992815114,2.4888,3484.6,3483.2,7.44]
[1718992815313,5.4888,3484.6,3483.2,2.29667]
[1718992815612,5.4888,3484.6,3483.1,2.29679]
[1718992815815,0.873058,3484.5,3483.2,0.459365]
[1718992816014,3.873058,3484.5,3483.2,0.459365]
[1718992816215,3.0,3484.5,3483.4,2.29656]
[1718992816517,2.4888,3484.6,3483.2,0.459365]
[1718992816518,5.4888,3484.6,3483.2,0.459365]
[1718992816862,5.4888,3484.6,3483.5,2.29652]
[1718992817042,2.4888,3484.6,3483.5,2.29652]
[1718992817563,2.4888,3484.6,3483.6,0.05391169]
[1718992817865,2.4888,3484.6,3483.6,0.51861486]
[1718992818318,2.4888,3484.6,3483.6,2.81507486]
[1718992818838,2.4888,3484.6,3483.6,2.76116317]
[1718992820130,2.4888,3484.6,3483.6,0.46470317]
[1718992820355,2.4888,3484.6,3482.9,2.29692]
[1718992820665,2.4682,3484.3,3482.2,7.44]
[1718992820869,2.4682,3484.2,3483.0,0.0626613]
[1718992821015,1.725,3484.0,3482.2,2.29734]
[1718992821355,2.4682,3483.8,3482.3,2.29732]
[1718992821669,2.4682,3483.8,3482.1,4.31846]
[1718992821670,2.4682,3483.8,3482.4,2.29725]
[1718992821957,2.2673,3483.6,3482.2,2.29737]
[1718992822111,0.28173,3483.5,3482.3,0.459477]
[1718992822315,0.28173,3483.5,3482.1,2.29746]
[1718992822536,2.3484,3483.4,3482.1,2.29746]
[1718992822733,2.3484,3483.4,3482.1,4.59492]
[1718992822934,5.3484,3483.4,3482.3,2.29727]
[1718992823318,5.3484,3483.4,3482.1,2.29746]
[1718992823512,5.966413,3483.4,3482.2,0.459499]
[1718992823766,5.966413,3483.4,3482.3,2.29731]
[1718992824063,5.3484,3483.4,3482.6,2.29712]
[1718992824218,2.3484,3483.4,3482.6,2.29712]
[1718992824921,2.3484,3483.4,3482.4,2.29725]
[1718992825122,2.4936,3483.8,3482.5,0.05310847]
[1718992825434,2.3043,3484.2,3482.8,4.31798]
[1718992825630,2.3043,3484.2,3483.2,2.29673]
[1718992825834,2.3043,3484.2,3483.1,2.2968]
[1718992826855,2.3043,3484.2,3483.3,2.29666]
[1718992827054,2.3043,3484.2,3483.4,0.459346]
[1718992827936,2.3043,3484.2,3483.1,2.29679]
[1718992828152,2.3043,3484.2,3483.2,2.29673]
[1718992829770,2.3043,3484.2,3482.8,2.021]
[1718992830062,2.3043,3484.2,3483.0,2.29685]
[1718992830728,2.3043,3484.2,3482.9,2.29693]
[1718992830943,2.3043,3484.2,3483.0,0.661497]
[1718992831332,2.3043,3484.2,3482.7,2.29706]
[1718992831333,2.2696,3484.0,3482.5,7.44]
[1718992831540,0.55,3483.9,3482.3,2.29728]
[1718992831739,2.2696,3483.8,3482.6,0.06266613]
[1718992831948,2.2696,3483.8,3482.2,2.29739]
[1718992831949,2.3868,3483.6,3482.2,2.29739]
[1718992832127,2.3868,3483.6,3482.7,0.06264062]
[1718992832439,2.3868,3483.5,3482.7,0.06264062]
[1718992832775,2.3868,3483.5,3481.8,9.73766]
[1718992832977,2.3868,3483.5,3482.1,2.29745]
[1718992833425,2.3868,3483.5,3482.2,0.04233668]
[1718992833625,2.3868,3483.5,3482.2,2.33972668]
[1718992834088,2.3868,3483.5,3482.3,2.29732]
[1718992834250,2.3868,3483.5,3482.3,2.33963967]
[1718992834566,2.3868,3483.5,3482.4,0.46370297]
[1718992834721,2.3868,3483.5,3482.4,0.50600564]
[1718992835155,2.3868,3483.5,3482.4,0.04230267]
[1718992835356,2.3868,3483.5,3482.1,2.2974]
[1718992835594,2.3868,3483.5,3482.5,0.04244227]
[1718992835763,2.3868,3483.5,3482.1,2.2974]
[1718992835960,2.3868,3483.5,3482.6,0.04241987]
[1718992836156,0.596876,3483.4,3482.2,2.29737]
[1718992836470,2.378,3483.3,3482.2,2.29738]
[1718992836692,2.378,3483.3,3481.8,7.44]
[1718992836693,5.378,3483.3,3482.3,2.33979088]
[1718992837011,5.378,3483.3,3482.5,2.29718]
[1718992837012,3.0,3483.2,3482.5,2.29718]
[1718992837209,2.378,3483.3,3482.5,2.29718]
[1718992837412,2.378,3483.3,3482.6,0.50611696]